bitfinex/quotes_BTCUSD_20250730
["timestamp","ask_amount","ask_price","bid_price","bid_amount"]
[1753897910937,5.29392082,117900.0,117890.0,0.78555194]
[1753897911153,5.29392082,117900.0,117890.0,0.92335392]
[1753897911368,5.29392082,117900.0,117890.0,1.26335392]
[1753897911579,5.29392082,117900.0,117890.0,0.92335392]
[1753897911762,5.29392082,117900.0,117890.0,0.94080294]
[1753897911996,5.29392082,117900.0,117890.0,1.27232096]
[1753897912237,5.29392082,117900.0,117890.0,1.28928499]
[1753897913300,5.29392082,117900.0,117890.0,1.31428499]
[1753897913723,5.29392082,117900.0,117890.0,1.28928499]
[1753897915118,5.29392082,117900.0,117890.0,1.28080301]
[1753897915329,5.29392082,117900.0,117890.0,1.28928513]
[1753897915558,5.29392082,117900.0,117890.0,1.26383877]
[1753897915811,5.29392082,117900.0,117890.0,1.2892852]
[1753897916191,5.29392082,117900.0,117890.0,1.3142852]
[1753897916691,5.29392082,117900.0,117890.0,1.28928527]
[1753897917843,5.32442082,117900.0,117890.0,1.29776725]
[1753897918065,5.32442082,117900.0,117890.0,1.28928527]
[1753897918613,5.32442082,117900.0,117890.0,1.12603636]
[1753897918816,5.38829082,117900.0,117890.0,0.87839636]
[1753897919015,5.38829082,117900.0,117890.0,0.85290936]
[1753897919626,5.38829082,117900.0,117890.0,0.86139184]
[1753897919835,5.38829082,117900.0,117890.0,0.86987425]
[1753897920207,5.38829082,117900.0,117890.0,0.85290936]
[1753897920447,5.38977082,117900.0,117890.0,0.2217573]
[1753897922417,5.39831161,117900.0,117890.0,0.2217573]
[1753897924086,5.38829082,117900.0,117890.0,0.83546034]
[1753897924537,5.38829082,117900.0,117890.0,0.66581067]
[1753897924742,5.38829082,117900.0,117890.0,0.66181067]
[1753897924961,5.38829082,117900.0,117890.0,0.66281067]
[1753897925388,5.38829082,117900.0,117890.0,0.65881067]
[1753897925839,5.38829082,117900.0,117890.0,0.65981067]
[1753897926466,5.39684955,117900.0,117890.0,0.65981067]
[1753897927605,5.39684955,117900.0,117890.0,0.2157573]
[1753897928806,5.39684955,117900.0,117890.0,0.65981067]
[1753897929001,5.39684955,117900.0,117890.0,0.2157573]
[1753897929581,5.39684955,117900.0,117890.0,0.0864773]
[1753897929789,5.39832955,117900.0,117890.0,0.2157573]
[1753897932450,5.84238292,117900.0,117890.0,0.0864773]
[1753897932646,5.84238292,117900.0,117890.0,0.2157573]
[1753897933246,5.84238292,117900.0,117890.0,0.2147573]
[1753897933597,5.84238292,117900.0,117890.0,0.2157573]
[1753897933806,5.84238292,117900.0,117890.0,0.2147573]
[1753897934215,5.84338292,117900.0,117890.0,0.2147573]
[1753897934458,5.39932955,117900.0,117890.0,0.2147573]
[1753897934649,5.84338292,117900.0,117890.0,0.2147573]
[1753897938170,5.84190292,117900.0,117890.0,0.2147573]
[1753897938377,5.39784955,117900.0,117890.0,0.2147573]
[1753897938587,5.39932955,117900.0,117890.0,0.2147573]
[1753897938970,5.84338292,117900.0,117890.0,0.2147573]
[1753897940186,5.39932955,117900.0,117890.0,0.2147573]
[1753897940400,5.39784955,117900.0,117890.0,0.2147573]
[1753897941210,5.84190292,117900.0,117890.0,0.2147573]
[1753897941826,5.84338292,117900.0,117890.0,0.2147573]
[1753897942662,5.84190292,117900.0,117890.0,0.2147573]
[1753897942864,5.39784955,117900.0,117890.0,0.2147573]
[1753897943060,5.84190292,117900.0,117890.0,0.2147573]
[1753897943946,5.36229955,117900.0,117890.0,0.69776067]
[1753897944808,5.36229955,117900.0,117890.0,0.2537073]
[1753897945597,5.36229955,117900.0,117890.0,0.25299593]
[1753897946469,5.1400405,117900.0,117890.0,0.25299593]
[1753897953764,5.1400405,117900.0,117890.0,0.4226456]
[1753897954163,5.1400405,117900.0,117890.0,0.25299593]
[1753897957243,5.1400405,117900.0,117890.0,0.4226456]
[1753897957444,5.1400405,117900.0,117890.0,0.25299593]
[1753897958623,5.1420205,117900.0,117890.0,0.25299593]
[1753897961784,5.1736705,117900.0,117890.0,0.25299593]
[1753897962207,5.1736705,117900.0,117890.0,0.25093593]
[1753897963200,5.1420205,117900.0,117890.0,0.25093593]
[1753897963675,5.1420205,117900.0,117890.0,0.25290593]
[1753897963916,5.1400405,117900.0,117890.0,0.25290593]
[1753897964719,5.1420205,117900.0,117890.0,0.25290593]
[1753897965787,5.1736705,117900.0,117890.0,0.25290593]
[1753897969492,5.00453686,117900.0,117890.0,0.25290593]
[1753897973245,4.97288686,117900.0,117890.0,0.25290593]
[1753897974172,5.00453686,117900.0,117890.0,0.25290593]
[1753897979038,4.97288686,117900.0,117890.0,0.4225556]
[1753897979245,4.96234813,117900.0,117890.0,0.86660897]
[1753897979457,4.90154813,117900.0,117890.0,0.87509138]
[1753897979669,4.90154813,117900.0,117890.0,0.86660897]
[1753897979873,4.93364813,117900.0,117890.0,0.87509138]
[1753897980078,4.96474813,117900.0,117890.0,0.86660897]
[1753897980424,4.96474813,117900.0,117890.0,0.87509138]
[1753897980630,4.96474813,117900.0,117890.0,0.86660897]
[1753897981037,4.99894813,117900.0,117890.0,0.21416593]
[1753897981445,4.99894813,117900.0,117890.0,0.3838156]
[1753897982699,4.99894813,117900.0,117890.0,0.4191056]
[1753897982875,4.99894813,117900.0,117890.0,0.24945593]
[1753897983061,4.99894813,117900.0,117890.0,0.25243593]
[1753897983462,5.00753371,117900.0,117890.0,0.25243593]
[1753897983661,5.00753371,117900.0,117890.0,0.4220856]
[1753897984321,5.00753371,117900.0,117890.0,0.25243593]
[1753897987412,5.00753371,117900.0,117890.0,0.4220856]
[1753897988270,4.97545371,117900.0,117890.0,0.4240756]
[1753897990628,4.96686813,117900.0,117890.0,0.4240756]
[1753897991381,4.96686813,117900.0,117890.0,0.25442593]
[1753897992420,4.97522512,117900.0,117890.0,0.4240756]
[1753897992665,4.97522512,117900.0,117890.0,0.25442593]
[1753897993124,5.00730512,117900.0,117890.0,0.25442593]
[1753897994620,4.97522512,117900.0,117890.0,0.25442593]
[1753897995813,5.00730512,117900.0,117890.0,0.25442593]
[1753897996017,5.50382801,117900.0,117890.0,0.08476593]
[1753897996221,5.50382801,117900.0,117890.0,0.21408593]
[1753897996418,5.50516801,117900.0,117890.0,0.21408593]
[1753897996803,5.00730512,117900.0,117890.0,0.21408593]
[1753897997470,4.96474813,117900.0,117890.0,0.88501357]
[1753897997673,4.90154813,117900.0,117890.0,0.88501371]
[1753897997876,4.90154813,117900.0,117890.0,0.91046014]
[1753897998336,4.90154813,117900.0,117890.0,0.89349597]
[1753897998537,4.90154813,117900.0,117890.0,0.88501371]
[1753897998755,4.90154813,117900.0,117890.0,0.87653138]
[1753897999164,4.90154813,117900.0,117890.0,0.86804897]
[1753897999367,4.90154813,117900.0,117890.0,0.4239956]
[1753897999565,4.96374813,117900.0,117890.0,0.86804897]
[1753897999768,4.96374813,117900.0,117890.0,0.87653145]
[1753898000012,4.96374813,117900.0,117890.0,0.88501386]
[1753898001210,4.96374813,117900.0,117890.0,0.87653145]
[1753898001808,4.96374813,117900.0,117890.0,0.88501386]
[1753898002027,4.96374813,117900.0,117890.0,0.89349619]
[1753898002223,4.96374813,117900.0,117890.0,0.88501386]
[1753898002426,4.93354813,117900.0,117890.0,0.90197838]
[1753898002662,4.93354813,117900.0,117890.0,0.9104605]
[1753898002780,4.90154813,117900.0,117890.0,0.9104605]
[1753898002984,4.90154813,117900.0,117890.0,0.90197802]
[1753898003406,4.90154813,117900.0,117890.0,0.8934959]
[1753898003589,4.90154813,117900.0,117890.0,0.90197802]
[1753898004263,4.90154813,117900.0,117890.0,0.92747302]
[1753898004673,4.90154813,117900.0,117890.0,0.93595507]
[1753898004904,4.90154813,117900.0,117890.0,0.91050849]
[1753898005358,4.90154813,117900.0,117890.0,0.45797293]
[1753898005568,4.96774813,117900.0,117890.0,0.90202645]
[1753898005738,4.96774813,117900.0,117890.0,0.91050886]
[1753898005896,4.96774813,117900.0,117890.0,0.90202645]
[1753898006308,4.96774813,117900.0,117890.0,0.91050886]
[1753898006524,4.96774813,117900.0,117890.0,0.89354397]
[1753898006956,4.96774813,117900.0,117890.0,0.90202645]
[1753898007710,4.96774813,117900.0,117890.0,0.89354397]
[1753898007869,4.96774813,117900.0,117890.0,0.90202645]
[1753898008631,4.96774813,117900.0,117890.0,0.92747345]
[1753898008827,4.96774813,117900.0,117890.0,0.92747331]
[1753898009266,4.96774813,117900.0,117890.0,0.92747338]
[1753898009904,4.96774813,117900.0,117890.0,0.9359555]
[1753898010049,4.96774813,117900.0,117890.0,0.935955]
[1753898010483,4.96774813,117900.0,117890.0,0.93595507]
[1753898010870,4.96774813,117900.0,117890.0,0.91899061]
[1753898011277,4.96774813,117900.0,117890.0,0.92747266]
[1753898011699,4.90154813,117900.0,117890.0,0.94492161]
[1753898011939,4.90154813,117900.0,117890.0,0.95752161]
[1753898012353,4.90154813,117900.0,117890.0,1.34752161]
[1753898012931,4.90054813,117900.0,117890.0,1.34752161]
[1753898013332,4.90054813,117900.0,117890.0,1.35052161]
[1753898013962,4.90054813,117900.0,117890.0,1.34952161]
[1753898014768,4.90054813,117900.0,117890.0,1.35252161]
[1753898019181,4.90054813,117900.0,117890.0,1.32752161]
[1753898019392,4.90054813,117900.0,117890.0,1.35252161]
[1753898020332,4.90054813,117900.0,117890.0,1.32752161]
[1753898023606,4.90054813,117900.0,117890.0,0.84586824]
[1753898023812,4.99955813,117900.0,117890.0,1.14534161]
[1753898024017,4.99955813,117900.0,117890.0,1.31146161]
[1753898024220,4.96712813,117900.0,117890.0,1.31354161]
[1753898027415,4.96514813,117900.0,117890.0,1.31354161]
[1753898028813,4.93234813,117900.0,117890.0,1.31354161]
[1753898029033,4.90054813,117900.0,117890.0,1.31354161]
[1753898029427,4.90054813,117900.0,117890.0,1.35114161]
[1753898031753,4.90054813,117900.0,117890.0,1.55498161]
[1753898035370,4.90054813,117900.0,117890.0,1.54928161]
[1753898036332,4.90054813,117900.0,117890.0,1.55498161]
[1753898037764,4.90054813,117900.0,117890.0,1.41310161]
[1753898038076,4.99815813,117900.0,117890.0,0.98347724]
[1753898038309,4.99963813,117900.0,117890.0,0.63499534]
[1753898038502,4.99963813,117900.0,117890.0,0.66092655]
[1753898038721,4.99963813,117900.0,117890.0,0.66940867]
[1753898038934,4.99963813,117900.0,117890.0,0.66940824]
[1753898039567,4.99963813,117900.0,117890.0,0.67789022]
[1753898039781,4.99963813,117900.0,117890.0,0.66092619]
[1753898039997,4.99963813,117900.0,117890.0,0.66092648]
[1753898040427,4.99963813,117900.0,117890.0,0.6439621]
[1753898040660,4.99963813,117900.0,117890.0,0.66940882]
[1753898041086,4.99963813,117900.0,117890.0,0.6439621]
[1753898041309,5.4436915,117900.0,117890.0,0.4887506]
[1753898041538,5.4436915,117900.0,117890.0,0.4141906]
[1753898042220,5.4436915,117900.0,117890.0,0.4081906]
[1753898042578,5.4436915,117900.0,117890.0,0.4121906]
[1753898043400,4.99963813,117900.0,117890.0,0.4121906]
[1753898044979,5.4436915,117900.0,117890.0,0.4121906]
[1753898045374,4.99963813,117900.0,117890.0,0.4121906]
[1753898047148,4.99963813,117900.0,117890.0,0.3866956]
[1753898048767,4.80082922,117900.0,117890.0,0.3866956]
[1753898055709,5.24488259,117900.0,117890.0,0.3866956]
[1753898056134,4.79934922,117900.0,117890.0,0.3866956]
[1753898060027,5.24340259,117900.0,117890.0,0.3866956]
[1753898061095,4.79934922,117900.0,117890.0,0.3866956]
[1753898061941,4.79934922,117900.0,117890.0,0.21704593]
[1753898062901,5.32935989,117900.0,117890.0,0.08776593]
[1753898063084,5.32935989,117900.0,117890.0,0.21704593]
[1753898063679,5.32935989,117900.0,117890.0,0.21504593]
[1753898063882,5.32935989,117900.0,117890.0,0.21304593]
[1753898064356,5.33135989,117900.0,117890.0,0.21304593]
[1753898064949,5.24688259,117900.0,117890.0,0.21304593]
[1753898067127,5.24788259,117900.0,117890.0,0.21304593]
[1753898069364,5.24640259,117900.0,117890.0,0.21304593]
[1753898073434,4.80234922,117900.0,117890.0,0.21304593]
[1753898073636,5.24640259,117900.0,117890.0,0.21304593]
[1753898074687,4.80234922,117900.0,117890.0,0.21304593]
[1753898074875,5.24640259,117900.0,117890.0,0.21304593]
[1753898079845,5.32564981,117900.0,117890.0,0.21300593]
[1753898080844,5.24640259,117900.0,117890.0,0.21300593]
[1753898082867,5.46831008,117900.0,117890.0,0.21300593]
[1753898086794,5.24634502,117900.0,117890.0,0.21300593]
[1753898096033,5.07344486,117900.0,117890.0,0.24643593]
[1753898099984,5.04231486,117900.0,117890.0,0.24643593]
[1753898100198,5.04231486,117900.0,117890.0,0.24855593]
[1753898100409,4.59831906,117900.0,117890.0,0.24855593]
[1753898100583,5.04231486,117900.0,117890.0,0.24855593]
[1753898103255,5.07512486,117900.0,117890.0,0.24855593]
[1753898104307,5.04231486,117900.0,117890.0,0.24855593]
[1753898105997,5.07512486,117900.0,117890.0,0.21300593]
[1753898106218,5.07512486,117900.0,117890.0,0.21502513]
[1753898106667,5.07512486,117900.0,117890.0,0.24845513]
[1753898108113,5.07512486,117900.0,117890.0,0.08875513]
[1753898108308,5.15960216,117900.0,117890.0,0.21498513]
[1753898108952,5.38164318,117900.0,117890.0,0.21498513]
[1753898110622,5.29716588,117900.0,117890.0,0.21498513]
[1753898116790,5.26435588,117900.0,117890.0,0.25053513]
[1753898118485,5.26237588,117900.0,117890.0,0.25053513]
[1753898118907,4.92935747,117900.0,117890.0,0.25053513]
[1753898119116,4.59633906,117900.0,117890.0,0.25053513]
[1753898119323,4.59633906,117900.0,117890.0,0.58355354]
[1753898119753,4.92935747,117900.0,117890.0,0.25053513]
[1753898127340,4.93133747,117900.0,117890.0,0.25053513]
[1753898128358,4.93133747,117900.0,117890.0,0.24544513]
[1753898128554,5.29566588,117900.0,117890.0,0.21498513]
[1753898128700,5.29566588,117900.0,117890.0,0.08578513]
[1753898128920,5.38162318,117900.0,117890.0,0.21494513]
[1753898129367,5.38014318,117900.0,117890.0,0.21494513]
[1753898129994,4.62962906,117900.0,117890.0,0.21494513]
[1753898130211,4.96264747,117900.0,117890.0,0.24776513]
[1753898130454,4.96264747,117900.0,117890.0,0.25096513]
[1753898130909,5.07357063,117900.0,117890.0,0.25096513]
[1753898131568,4.59831906,117900.0,117890.0,0.25096513]
[1753898131774,4.59633906,117900.0,117890.0,0.25299513]
[1753898135025,4.59633906,117900.0,117890.0,0.4226448]
[1753898135244,4.59633906,117900.0,117890.0,0.25299513]
[1753898136524,4.53183906,117900.0,117890.0,0.86658637]
[1753898136736,4.53183906,117900.0,117890.0,0.87506878]
[1753898136919,4.53183906,117900.0,117890.0,0.90746385]
[1753898137405,4.53183906,117900.0,117890.0,0.90056385]
[1753898138035,4.53183906,117900.0,117890.0,0.89208137]
[1753898138866,4.53183906,117900.0,117890.0,0.9005637]
[1753898139081,4.53183906,117900.0,117890.0,0.90904596]
[1753898139503,4.53183906,117900.0,117890.0,0.89208137]
[1753898139713,4.53183906,117900.0,117890.0,0.90056385]
[1753898139928,4.53183906,117900.0,117890.0,0.90904618]
[1753898140821,4.53183906,117900.0,117890.0,0.89208137]
[1753898141025,4.53183906,117900.0,117890.0,0.90904611]
[1753898142061,4.53183906,117900.0,117890.0,0.90056385]
[1753898142295,4.53183906,117900.0,117890.0,0.90904626]
[1753898142478,4.53183906,117900.0,117890.0,0.92601085]
[1753898143102,4.53183906,117900.0,117890.0,0.93449254]
[1753898143307,4.53183906,117900.0,117890.0,0.96454156]
[1753898143883,4.53187906,117900.0,117890.0,0.96454156]
[1753898146798,4.53187906,117900.0,117890.0,0.97324919]
[1753898147389,4.53187906,117900.0,117890.0,0.95216721]
[1753898147593,4.53187906,117900.0,117890.0,0.49951801]
[1753898147795,4.53187906,117900.0,117890.0,0.94345958]
[1753898147961,4.53187906,117900.0,117890.0,0.93497739]
[1753898148394,4.53187906,117900.0,117890.0,0.90953039]
[1753898148648,4.59875906,117900.0,117890.0,0.3189798]
[1753898148824,4.59875906,117900.0,117890.0,0.2809298]
[1753898148825,4.63006906,117900.0,117890.0,0.2809298]
[1753898149023,4.63006906,117900.0,117890.0,0.4100498]
[1753898150760,4.63006906,117900.0,117890.0,0.4460698]
[1753898151544,4.63006906,117900.0,117890.0,0.2809298]
[1753898151756,4.63006906,117900.0,117890.0,0.24040013]
[1753898152211,4.63006906,117900.0,117890.0,0.4100498]
[1753898155509,4.63006906,117900.0,117890.0,0.4460698]
[1753898155753,4.59875906,117900.0,117890.0,0.4460698]
[1753898156374,4.59875906,117900.0,117890.0,0.4480898]
[1753898157334,4.59677906,117900.0,117890.0,0.9005137]
[1753898157562,4.53187906,117900.0,117890.0,0.91747787]
[1753898157758,4.53187906,117900.0,117890.0,0.91747794]
[1753898157959,4.53187906,117900.0,117890.0,0.47353637]
[1753898158169,4.53187906,117900.0,117890.0,0.90899589]
[1753898158773,4.53187906,117900.0,117890.0,0.91747801]
[1753898158969,4.53187906,117900.0,117890.0,0.92595999]
[1753898159834,4.53187906,117900.0,117890.0,0.92596006]
[1753898160075,4.53187906,117900.0,117890.0,0.91747801]
[1753898160222,4.53187906,117900.0,117890.0,0.92596006]
[1753898160632,4.53187906,117900.0,117890.0,0.91747801]
[1753898160832,4.53187906,117900.0,117890.0,0.92596006]
[1753898161497,4.53187906,117900.0,117890.0,0.93444204]
[1753898161953,4.53187906,117900.0,117890.0,0.91747801]
[1753898162234,4.53187906,117900.0,117890.0,0.92595999]
[1753898162699,4.52987906,117900.0,117890.0,0.91747801]
[1753898162942,4.52887906,117900.0,117890.0,0.92595999]
[1753898163202,4.52887906,117900.0,117890.0,0.92596006]
[1753898163433,4.52887906,117900.0,117890.0,0.91747801]
[1753898163673,4.52887906,117900.0,117890.0,0.92596006]
[1753898163903,4.52887906,117900.0,117890.0,0.91747801]
[1753898164118,4.52987906,117900.0,117890.0,0.92595999]
[1753898164333,4.52987906,117900.0,117890.0,0.91747801]
[1753898164552,4.52987906,117900.0,117890.0,0.93444204]
[1753898164760,4.52987906,117900.0,117890.0,0.91747801]
[1753898164980,4.52987906,117900.0,117890.0,0.92595999]
[1753898165275,4.52987906,117900.0,117890.0,0.92596006]
[1753898165699,4.52987906,117900.0,117890.0,0.91747801]
[1753898166123,4.52987906,117900.0,117890.0,0.90051378]
[1753898166331,4.52987906,117900.0,117890.0,0.91747823]
[1753898166543,4.52987906,117900.0,117890.0,0.92596028]
[1753898166962,4.52987906,117900.0,117890.0,0.93444226]
[1753898168068,4.52987906,117900.0,117890.0,0.92596028]
[1753898168488,4.56047906,117900.0,117890.0,0.93444226]
[1753898170040,4.59267906,117900.0,117890.0,0.9174783]
[1753898170257,4.59267906,117900.0,117890.0,0.90899611]
[1753898170701,4.59267906,117900.0,117890.0,0.91747823]
[1753898170891,4.59267906,117900.0,117890.0,0.90046528]
[1753898171095,4.59267906,117900.0,117890.0,0.90894726]
[1753898171348,4.59267906,117900.0,117890.0,0.90046528]
[1753898171554,4.59267906,117900.0,117890.0,0.90894726]
[1753898171725,4.59267906,117900.0,117890.0,0.93444026]
[1753898172961,4.59267906,117900.0,117890.0,0.90894726]
[1753898173775,4.59267906,117900.0,117890.0,0.93444026]
[1753898174837,4.59267906,117900.0,117890.0,0.49049869]
[1753898175198,4.43005065,117900.0,117890.0,0.49049869]
[1753898176786,4.43005065,117900.0,117890.0,0.46500569]
[1753898177010,4.43005065,117900.0,117890.0,0.49049869]
[1753898177662,4.43005065,117900.0,117890.0,0.48201671]
[1753898177874,4.43005065,117900.0,117890.0,0.47353466]
[1753898178288,4.43005065,117900.0,117890.0,0.48201664]
[1753898182872,4.36725065,117900.0,117890.0,0.48201664]
[1753898183779,4.43065065,117900.0,117890.0,0.48201664]
[1753898184564,4.42965065,117900.0,117890.0,0.48201664]
[1753898184765,4.42965065,117900.0,117890.0,0.48401664]
[1753898184937,4.42965065,117900.0,117890.0,0.48601664]
[1753898186343,4.42965065,117900.0,117890.0,0.50346566]
[1753898188909,4.39905065,117900.0,117890.0,0.86846566]
[1753898189170,4.36625065,117900.0,117890.0,0.86846566]
[1753898189366,4.36625065,117900.0,117890.0,0.88106566]
[1753898189704,4.36625065,117900.0,117890.0,0.86846566]
[1753898200617,4.36625065,117900.0,117890.0,0.88106566]
[1753898200818,4.36625065,117900.0,117890.0,0.90606566]
[1753898201172,4.36625065,117900.0,117890.0,0.89346566]
[1753898202656,4.36625065,117900.0,117890.0,0.86846566]
[1753898202904,4.36625065,117900.0,117890.0,0.89346566]
[1753898203835,3.98132492,117900.0,117890.0,0.97392841]
[1753898204117,3.62267847,117900.0,117890.0,0.97392841]
[1753898204341,3.42437905,117900.0,117890.0,0.97392841]
[1753898204574,3.21566909,117900.0,117890.0,0.97392841]
[1753898204772,3.09411495,117900.0,117890.0,0.97192841]
[1753898205292,3.09411495,117900.0,117890.0,0.97492841]
[1753898205734,3.09411495,117900.0,117890.0,0.97992841]
[1753898207382,3.09411495,117900.0,117890.0,0.97844841]
[1753898207815,3.09411495,117900.0,117890.0,0.91058566]
[1753898208900,2.46916584,117900.0,117890.0,1.17478566]
[1753898209078,2.44050067,117900.0,117890.0,1.17478566]
[1753898210370,2.00599994,117900.0,117890.0,1.17478566]
[1753898210569,1.87183833,117900.0,117890.0,1.17478566]
[1753898211411,1.48528947,117900.0,117890.0,1.17478566]
[1753898211631,1.17144767,117900.0,117890.0,1.17478566]
[1753898212658,0.49818376,117900.0,117890.0,1.23978566]
[1753898212956,0.35796735,117900.0,117890.0,1.23978566]
[1753898213239,0.17775282,117900.0,117890.0,1.23978566]
[1753898213505,1e-08,117900.0,117890.0,1.38978566]
[1753898213718,0.09466,117930.0,117920.0,0.58504661]
[1753898213952,0.09668861,117930.0,117920.0,0.79848391]
[1753898214188,0.09668861,117930.0,117920.0,0.80050311]
[1753898214420,0.09668861,117930.0,117920.0,0.82598511]
[1753898215461,1e-08,117930.0,117920.0,0.88179413]
[1753898215683,1e-08,117930.0,117920.0,0.88379413]
[1753898215895,1e-08,117930.0,117920.0,0.89639413]
[1753898216530,1e-08,117930.0,117920.0,0.89539413]
[1753898216742,1e-08,117930.0,117920.0,0.89839413]
[1753898216948,1e-08,117930.0,117920.0,0.93739413]
[1753898217407,1e-08,117930.0,117920.0,0.93939413]
[1753898217847,1e-08,117930.0,117920.0,1.20359413]
[1753898218053,1e-08,117930.0,117920.0,1.16359413]
[1753898219126,1e-08,117930.0,117920.0,1.1884696]
[1753898220170,1e-08,117930.0,117920.0,1.1884296]
[1753898220641,1e-08,117930.0,117920.0,1.0595096]
[1753898220864,1e-08,117930.0,117920.0,1.1827296]
[1753898221090,1e-08,117930.0,117920.0,1.1758296]
[1753898221749,1e-08,117930.0,117920.0,1.0469096]
[1753898221967,1e-08,117930.0,117920.0,1.1758296]
[1753898225094,0.0004,118010.0,117980.0,0.0169518]
[1753898225299,0.00088645,118010.0,117990.0,0.2133573]
[1753898225534,0.00088645,118010.0,118000.0,0.09558]
[1753898225744,0.06438645,118010.0,118000.0,0.06438]
[1753898225942,0.06638645,118010.0,118000.0,0.06438]
[1753898226150,0.11502645,118010.0,118000.0,0.06438]
[1753898226823,0.064,118000.0,117990.0,0.0844773]
[1753898227047,0.11464,118000.0,117990.0,0.2133573]
[1753898227302,0.12324762,118000.0,117990.0,0.2133573]
[1753898227922,0.12324762,118000.0,117990.0,0.1821573]
[1753898238796,0.13116087,118000.0,117990.0,0.1821573]
[1753898239164,0.13116087,118000.0,117990.0,0.1821173]
[1753898243416,0.13117201,118000.0,117990.0,0.1821173]
[1753898243638,0.13117197,118000.0,117990.0,0.1821173]
[1753898245210,0.13117197,118000.0,117990.0,0.0532773]
[1753898245411,0.13117197,118000.0,117970.0,0.078916]
[1753898245412,0.13711953,118000.0,117970.0,0.078916]
[1753898245651,0.05251,117990.0,117980.0,0.2133173]
[1753898245884,0.06242435,117990.0,117980.0,0.2133173]
[1753898246114,0.06242435,117990.0,117980.0,0.38283755]
[1753898246115,0.12386435,117990.0,117980.0,0.38283755]
[1753898246322,0.12386435,117990.0,117980.0,0.2630073]
[1753898246650,0.12386435,117990.0,117980.0,0.43252755]
[1753898247032,0.12386435,117990.0,117980.0,0.43449755]
[1753898247214,0.12386435,117990.0,117980.0,0.2649773]
[1753898247423,0.12981413,117990.0,117980.0,0.2649773]
[1753898248806,0.12981413,117990.0,117980.0,0.43449755]
[1753898249008,0.07876413,117990.0,117980.0,0.2649773]
[1753898249206,0.07677413,117990.0,117980.0,0.43449755]
[1753898249409,0.07082435,117990.0,117980.0,0.43449755]
[1753898251155,0.07082435,117990.0,117980.0,0.2649773]
[1753898251356,0.07082435,117990.0,117980.0,0.43449755]
[1753898252205,0.07082435,117990.0,117980.0,0.44297356]
[1753898252396,0.07082435,117990.0,117980.0,0.43449755]
[1753898254310,0.07084267,117990.0,117980.0,0.30565755]
[1753898254513,0.07084267,117990.0,117980.0,0.43449755]
[1753898255349,0.0629,117990.0,117980.0,0.43449755]
[1753898258825,0.11395,117990.0,117980.0,0.2649773]
[1753898259305,0.14335494,117990.0,117980.0,0.2133173]
[1753898260238,0.11594,117990.0,117980.0,0.2133173]
[1753898265591,0.11594,117990.0,117980.0,0.0844773]
[1753898265794,0.0632,117970.0,117960.0,0.04969]
[1753898265997,0.0632,117970.0,117960.0,0.2649373]
[1753898266428,0.0632,117970.0,117960.0,0.43448629]
[1753898266618,0.0632,117970.0,117960.0,0.2649373]
[1753898267207,0.06332362,117970.0,117960.0,0.2649373]
[1753898268011,0.06432362,117970.0,117960.0,0.2649373]
[1753898269547,0.06432362,117970.0,117960.0,0.27341474]
[1753898269685,0.06432362,117970.0,117960.0,0.2649373]
[1753898270519,0.06432362,117970.0,117960.0,0.43448629]
[1753898270714,0.06432362,117970.0,117960.0,0.44296373]
[1753898270918,0.06432362,117970.0,117960.0,0.43448629]
[1753898272017,0.06432362,117970.0,117960.0,0.44296373]
[1753898272261,0.06432362,117970.0,117960.0,0.43448629]
[1753898273218,0.06432362,117970.0,117960.0,0.44296373]
[1753898273663,0.06432362,117970.0,117960.0,0.43448629]
[1753898276130,0.06432362,117970.0,117960.0,0.44296373]
[1753898276363,0.06432362,117970.0,117960.0,0.43448629]
[1753898277016,0.06432362,117970.0,117960.0,0.4514411]
[1753898277523,0.06432362,117970.0,117960.0,0.45144103]
[1753898277781,0.06432362,117970.0,117960.0,0.44296373]
[1753898278022,0.06432362,117970.0,117960.0,0.43448629]
[1753898282683,0.06432362,117970.0,117960.0,0.44296373]
[1753898282895,0.06432362,117970.0,117960.0,0.43448629]
[1753898284441,0.06432362,117970.0,117960.0,0.42945629]
[1753898284882,0.06432362,117970.0,117960.0,0.38282629]
[1753898287485,0.06432362,117970.0,117960.0,0.25402629]
[1753898287733,0.06432362,117970.0,117960.0,0.38282629]
[1753898288685,0.06432362,117970.0,117960.0,0.25402629]
[1753898291683,0.06432362,117970.0,117960.0,0.0844773]
[1753898299235,0.00112362,117970.0,117960.0,0.36176648]
[1753898299461,0.00112362,117970.0,117960.0,0.33884371]
[1753898299687,0.00112362,117970.0,117960.0,0.33036648]
[1753898299899,0.00112362,117970.0,117960.0,0.33884371]
[1753898300327,0.00112362,117970.0,117960.0,0.32188904]
[1753898300546,0.03402362,117970.0,117960.0,0.32188904]
[1753898300864,0.03402362,117970.0,117960.0,0.33884357]
[1753898301083,0.00112362,117970.0,117960.0,0.3473208]
[1753898301324,0.00112362,117970.0,117960.0,0.33884371]
[1753898301792,0.06392362,117970.0,117960.0,0.0844773]
[1753898304827,0.07239984,117970.0,117960.0,0.0844773]
[1753898305290,0.08087614,117970.0,117960.0,0.0844773]
[1753898305518,0.13410255,117970.0,117960.0,0.0844773]
[1753898305726,0.07239984,117970.0,117960.0,0.0844773]
[1753898306379,0.06392362,117970.0,117960.0,0.0844773]
[1753898312516,0.0723997,117970.0,117960.0,0.0844773]
[1753898313408,0.06392362,117970.0,117960.0,0.0844773]
[1753898314073,0.07239984,117970.0,117960.0,0.0844773]
[1753898314297,0.08277603,117970.0,117960.0,0.0844773]
[1753898314519,0.0313,117950.0,117930.0,0.0577032]
[1753898314738,0.0632,117950.0,117940.0,0.0844773]
[1753898315886,0.07249532,117950.0,117940.0,0.0844773]
[1753898316123,0.07149532,117950.0,117940.0,0.0844773]
[1753898316563,0.07249532,117950.0,117940.0,0.0844773]
[1753898317003,0.00929532,117950.0,117940.0,0.0844773]
[1753898317447,0.00929532,117950.0,117940.0,0.09295618]
[1753898317656,0.00929532,117950.0,117940.0,0.29303393]
[1753898317871,0.001,117950.0,117940.0,0.38633247]
[1753898318084,0.001,117950.0,117940.0,0.41903247]
[1753898318297,0.001,117950.0,117940.0,0.41903254]
[1753898318507,0.001,117950.0,117940.0,0.42751092]
[1753898318927,0.001,117950.0,117940.0,0.41903254]
[1753898319685,0.002,117950.0,117940.0,0.41903254]
[1753898319877,0.00012362,117970.0,117960.0,0.58942948]
[1753898320134,0.00012362,117970.0,117960.0,0.69890678]
[1753898321748,0.00012362,117970.0,117960.0,0.67390678]
[1753898321980,0.00012362,117970.0,117960.0,0.69890678]
[1753898322163,0.00012362,117970.0,117960.0,0.70090678]
[1753898322377,0.00012362,117970.0,117960.0,0.70490678]
[1753898322808,0.00012362,117970.0,117960.0,0.67990678]
[1753898323013,0.00012362,117970.0,117960.0,0.70490678]
[1753898323454,0.00012362,117970.0,117960.0,0.71359878]
[1753898325047,0.00012362,117970.0,117960.0,0.68859878]
[1753898325272,0.00012362,117970.0,117960.0,0.71359878]
[1753898326734,0.00012362,117970.0,117960.0,0.29464461]
[1753898326942,0.00012362,117970.0,117960.0,0.31159871]
[1753898327156,0.00012362,117970.0,117960.0,0.31159886]
[1753898327592,0.00012362,117970.0,117960.0,0.3180758]